bitfinex/quotes_ETHUSD_20251017
["timestamp","ask_amount","ask_price","bid_price","bid_amount"]
[1760695369004,0.4189593,3737.2,3736.9,2.67600556]
[1760695369187,0.4189593,3737.2,3736.7,0.4515]
[1760695369367,0.4189593,3737.2,3736.6,2.67622268]
[1760695369572,0.4189593,3737.2,3736.5,0.26762458]
[1760695369778,0.4189593,3737.2,3736.9,2.67594822]
[1760695369977,0.4189593,3737.2,3737.1,2.67587166]
[1760695370382,0.002,3737.8,3737.6,2.67551369]
[1760695370594,0.42171971,3737.8,3737.6,2.67551369]
[1760695370969,0.002,3737.8,3737.6,2.67551369]
[1760695371394,0.002,3737.8,3737.6,3.12701369]
[1760695371603,0.002,3737.8,3737.6,3.26061369]
[1760695371987,0.002,3737.8,3737.6,3.27761364]
[1760695372170,0.002,3737.8,3737.6,3.87293486]
[1760695372500,0.002,3737.8,3737.6,7.29153486]
[1760695372697,0.002,3737.8,3737.6,7.27453491]
[1760695373897,0.002,3737.8,3737.6,9.00253491]
[1760695374502,0.002,3737.8,3737.6,6.18943491]
[1760695375069,0.002,3737.8,3737.6,6.51843491]
[1760695375298,0.002,3737.8,3737.6,6.65203491]
[1760695375773,0.002,3737.8,3737.6,2.67551369]
[1760695376403,0.002,3737.8,3737.0,0.53520638]
[1760695376704,0.002,3737.8,3736.6,0.4626]
[1760695376705,0.002,3737.8,3737.6,2.67551369]
[1760695377303,0.002,3737.8,3737.6,3.13811369]
[1760695377491,0.002,3737.8,3737.6,2.67551369]
[1760695378180,0.002,3737.8,3737.0,1.728]
[1760695378379,0.002,3737.8,3737.6,2.67551369]
[1760695380396,0.002,3737.8,3737.6,3.21062503]
[1760695381182,0.002,3737.8,3737.6,2.67551369]
[1760695381477,0.4701,3737.7,3736.6,2.67620297]
[1760695381675,0.4701,3737.7,3737.3,2.67567887]
[1760695381991,0.4681,3737.6,3736.5,0.26762458]
[1760695382309,0.2178,3736.9,3736.2,2.67646801]
[1760695382609,0.2178,3736.9,3735.9,0.001]
[1760695382812,0.6859,3736.9,3735.9,2.67772764]
[1760695382989,0.6859,3736.9,3735.9,0.001]
[1760695383310,2.46055163,3736.9,3735.9,0.001]
[1760695383676,0.42182129,3737.7,3737.2,2.67574886]
[1760695383910,0.42182129,3737.7,3737.6,2.67551369]
[1760695384412,0.002,3737.7,3737.6,2.67551369]
[1760695384576,0.002,3737.7,3737.6,3.12661369]
[1760695384779,0.002,3737.7,3737.6,4.61853974]
[1760695385676,0.002,3737.7,3737.6,6.48013974]
[1760695385880,0.4208816,3739.0,3738.0,5.03682739]
[1760695386080,1e-08,3738.2,3738.1,5.03675582]
[1760695386410,1e-08,3738.2,3738.1,18.05244782]
[1760695386598,1e-08,3738.2,3738.1,8.30913535]
[1760695386913,1e-08,3738.2,3738.1,11.08913535]
[1760695387073,1e-08,3738.2,3738.1,10.00443535]
[1760695387274,1e-08,3738.2,3738.1,8.45665582]
[1760695387509,1e-08,3738.2,3738.1,10.62665582]
[1760695388176,0.0012,3739.0,3738.5,27.36065807]
[1760695388380,0.0012,3739.0,3738.5,30.14165807]
[1760695388579,0.0012,3739.0,3738.5,30.59275807]
[1760695388778,0.0012,3739.0,3738.5,33.2252376]
[1760695390012,0.0012,3739.0,3738.5,37.8269716]
[1760695390532,0.002,3740.2,3738.5,37.8269716]
[1760695390533,0.002,3740.2,3740.1,2.6737253]
[1760695390824,0.002,3740.2,3740.1,3.5031253]
[1760695391528,0.002,3740.2,3740.1,3.3073253]
[1760695391693,0.002,3740.2,3740.1,4.18363963]
[1760695391897,0.002,3740.2,3740.1,4.37943963]
[1760695392512,0.0012,3740.2,3740.1,4.37943963]
[1760695392819,0.0012,3740.2,3740.1,2.6737253]
[1760695393495,0.0012,3740.2,3740.1,3.5031253]
[1760695393725,0.0012,3740.2,3740.1,5.2311253]
[1760695394171,0.0012,3740.2,3740.1,2.6737253]
[1760695394357,0.4693,3740.2,3740.0,2.782]
[1760695394511,0.0012,3740.2,3739.6,2.78]
[1760695394710,0.0012,3740.2,3739.7,0.278]
[1760695395149,0.0012,3740.2,3740.1,2.6737253]
[1760695396471,0.4693,3740.2,3739.2,1.728]
[1760695396750,0.2178,3740.0,3739.3,2.67422908]
[1760695396911,0.2178,3739.4,3739.2,2.80796567]
[1760695397110,0.63723836,3740.0,3739.2,0.1336]
[1760695397314,0.04661723,3740.1,3740.0,2.67379679]
[1760695397635,0.4681,3740.1,3739.5,2.779]
[1760695397946,0.2178,3739.6,3739.0,1.728]
[1760695398116,0.2178,3739.6,3739.5,2.80775429]
[1760695398445,0.6859,3739.6,3739.5,0.1336]
[1760695398610,0.6859,3739.6,3739.0,0.1336]
[1760695398816,0.6859,3739.6,3738.8,0.1336]
[1760695399232,0.2178,3739.6,3739.2,2.67430704]
[1760695399435,0.4681,3739.5,3739.4,2.67422581]
[1760695399635,0.04661917,3740.1,3739.8,2.67390934]
[1760695399636,0.4681,3740.0,3739.8,2.67390934]
[1760695399811,0.6859,3739.9,3739.7,2.67398155]
[1760695400013,0.2178,3739.9,3739.6,2.67407324]
[1760695400317,0.4681,3739.8,3739.7,2.67401128]
[1760695400530,0.4681,3739.8,3739.4,2.67422581]
[1760695400726,0.2178,3739.9,3739.5,2.67414954]
[1760695400925,0.4681,3739.7,3739.2,0.1336]
[1760695401158,0.2178,3739.9,3739.4,2.67421999]
[1760695401159,0.4681,3739.6,3739.4,2.67421999]
[1760695401366,0.2178,3739.9,3739.5,2.67415429]
[1760695401561,0.428,3739.8,3739.4,2.67417061]
[1760695401753,0.2178,3739.9,3739.5,2.67412159]
[1760695401957,0.428,3739.8,3739.6,2.67406999]
[1760695402255,0.428,3739.7,3739.4,2.67422581]
[1760695402457,0.428,3739.7,3739.5,2.67414542]
[1760695402782,0.428,3739.7,3739.2,2.80796051]
[1760695402949,0.428,3739.6,3739.3,2.67429732]
[1760695403150,0.6458,3739.9,3739.6,2.67403444]
[1760695403376,0.428,3739.8,3739.6,2.67403444]
[1760695403573,0.63727017,3739.9,3739.8,2.67393978]
[1760695403774,0.0012,3740.2,3740.0,2.67379679]
[1760695403977,0.0012,3740.2,3740.1,2.6737253]
[1760695404672,0.4292,3740.2,3739.8,2.67391739]
[1760695404990,0.0012,3740.2,3740.1,2.6737253]
[1760695405882,0.0012,3740.2,3739.5,2.78]
[1760695406084,0.0012,3740.2,3740.1,2.6737253]
[1760695406676,0.0012,3740.2,3739.5,2.78]
[1760695406856,0.0012,3740.2,3740.1,2.6737253]
[1760695407187,0.0012,3740.2,3740.1,2.8695253]
[1760695407965,0.0012,3740.2,3740.1,2.6737253]
[1760695408497,0.0012,3740.2,3740.1,2.8695253]
[1760695408733,0.0012,3740.2,3740.1,2.6737253]
[1760695408916,0.0012,3740.2,3739.6,3.057]
[1760695409222,0.0012,3740.2,3740.1,2.6737253]
[1760695409599,0.0012,3740.2,3740.1,2.8695253]
[1760695410106,0.0012,3740.2,3740.1,3.3065253]
[1760695410413,0.0012,3740.2,3740.1,2.8695253]
[1760695410618,0.0012,3740.2,3740.1,5.42965892]
[1760695411212,0.0012,3740.2,3740.1,5.23385892]
[1760695411725,0.0012,3740.2,3740.1,5.42965892]
[1760695412721,0.0012,3740.2,3740.1,5.23385892]
[1760695413029,0.0012,3740.2,3740.1,4.4017253]
[1760695413188,0.0012,3740.2,3740.1,4.5975253]
[1760695413390,0.0012,3740.2,3740.1,4.4017253]
[1760695414327,0.0012,3740.2,3740.1,4.5975253]
[1760695414832,0.0012,3740.2,3740.1,4.7311253]
[1760695415040,0.0012,3740.2,3740.1,5.55361892]
[1760695415915,0.0012,3740.2,3740.1,5.74941892]
[1760695416121,0.0004,3740.2,3740.1,5.74941892]
[1760695416925,0.0004,3740.2,3740.1,6.82001892]
[1760695417247,0.0004,3740.2,3740.1,9.20501892]
[1760695417456,0.0004,3740.2,3740.1,9.64201892]
[1760695418146,1e-08,3741.0,3740.9,5.03475351]
[1760695418311,0.2174,3742.5,3742.0,2.67236771]
[1760695418654,0.13675605,3744.4,3742.7,2.6718679]
[1760695418821,0.428,3743.3,3742.9,2.67172513]
[1760695419023,0.04657298,3743.7,3742.9,2.67172513]
[1760695419225,0.04657298,3743.7,3743.0,2.67165375]
[1760695419658,0.4292,3743.1,3743.0,2.67165375]
[1760695420334,0.0012,3743.1,3743.0,2.67165375]
[1760695420518,0.0012,3743.1,3743.0,2.80445375]
[1760695421512,0.0012,3743.1,3743.0,9.21223004]
[1760695421713,0.0012,3743.1,3743.0,9.20627638]
[1760695421945,0.0012,3743.1,3743.0,8.13467638]
[1760695422354,0.0012,3743.1,3743.0,9.07247638]
[1760695422651,0.0012,3743.1,3743.0,9.20527638]
[1760695424274,0.002,3743.9,3743.8,5.03268285]
[1760695424439,0.002,3743.9,3743.8,7.80868285]
[1760695424640,0.002,3743.9,3743.8,4.53188285]
[1760695424843,0.2194,3743.9,3743.8,7.30688285]
[1760695425338,0.6474,3743.9,3743.8,0.1328]
[1760695425789,0.6466,3743.9,3743.8,0.1328]
[1760695426268,0.6466,3743.9,3743.3,0.1328]
[1760695426833,0.6466,3743.9,3743.3,2.80422852]
[1760695427080,0.428,3743.8,3743.0,2.777]
[1760695427375,0.428,3743.8,3743.1,0.1328]
[1760695427536,0.428,3743.7,3743.1,0.1328]
[1760695427737,0.428,3743.7,3741.0,22.51998847]
[1760695427968,0.428,3743.6,3741.2,2.67293916]
[1760695428169,0.2186,3743.9,3741.1,3.06947953]
[1760695428170,0.428,3743.5,3741.6,2.67265341]
[1760695428473,0.428,3743.4,3741.7,7.17858081]
[1760695428682,0.04657482,3743.3,3741.8,1.728]
[1760695428849,0.47457482,3743.3,3742.8,2.67177564]
[1760695429055,0.47457482,3743.3,3742.7,2.67185961]
[1760695429569,0.47457482,3743.3,3742.6,2.67193915]
[1760695429737,0.2174,3742.8,3742.7,2.67185313]
[1760695430249,0.2174,3742.9,3742.3,2.67213271]
[1760695430448,0.2174,3742.9,3742.4,2.67205666]
[1760695430648,0.2174,3742.9,3742.2,1.728]
[1760695430874,0.2174,3742.9,3742.6,2.67193112]
[1760695431061,0.2174,3742.9,3742.8,2.67179651]
[1760695431278,0.428,3743.7,3743.4,2.67134703]
[1760695431486,0.4734,3743.6,3742.5,4.505]
[1760695431685,0.4734,3743.6,3743.3,2.67143875]
[1760695431870,0.2186,3743.9,3743.3,2.67143875]
[1760695431871,0.4734,3743.5,3743.3,2.67143875]
[1760695432190,0.4734,3743.4,3743.1,2.67151416]
[1760695432390,0.4734,3743.3,3743.1,2.67151416]
[1760695432687,0.4734,3743.2,3742.3,4.505]
[1760695432885,0.4734,3743.2,3742.5,1.728]
[1760695433076,0.4734,3743.2,3742.9,2.67171609]
[1760695433278,0.4734,3743.1,3742.4,1.728]
[1760695433456,0.4734,3743.1,3742.3,3.29144]
[1760695433655,0.2152,3742.4,3741.1,2.67301061]
[1760695433892,0.2152,3742.4,3741.2,0.02395125]
[1760695433893,0.6886,3742.4,3741.2,0.02395125]
[1760695434199,0.6886,3742.4,3741.7,2.67251675]
[1760695434368,0.6886,3742.4,3741.5,1.75194932]
[1760695434694,0.89253699,3743.0,3741.5,0.90922388]
[1760695434893,0.2152,3742.7,3741.5,0.46674932]
[1760695435093,0.4734,3742.6,3741.7,1.728]
[1760695435298,0.4734,3742.6,3742.3,2.67210339]
[1760695435468,0.2152,3742.7,3741.6,2.3616]
[1760695435668,0.41913699,3743.0,3741.7,0.4428]
[1760695435894,0.2152,3742.9,3742.5,2.67200986]
[1760695436192,0.2152,3742.9,3741.8,0.55804]
[1760695436193,0.41913699,3743.0,3742.9,2.67172513]
[1760695436394,0.89253699,3743.0,3742.1,0.1888]
[1760695436697,0.41913699,3743.0,3742.1,0.1888]
[1760695436900,0.41913699,3743.0,3742.8,2.67178979]
[1760695437082,0.4734,3743.3,3742.2,2.67222489]
[1760695437288,0.04657671,3743.4,3743.1,2.67156101]
[1760695437494,0.41910757,3743.5,3743.1,2.67156134]
[1760695437805,0.4734,3743.4,3743.0,2.67163491]
[1760695437965,0.4734,3743.3,3743.0,2.67163491]
[1760695438165,0.4734,3743.3,3742.9,2.67171502]
[1760695438596,0.4734,3743.2,3741.8,0.55804]
[1760695438795,0.4734,3743.1,3742.0,1.728]
[1760695439196,0.4734,3743.1,3742.8,2.67172615]
[1760695439397,0.4734,3743.1,3742.2,2.67222489]
[1760695439596,0.04657476,3743.4,3742.1,0.6316]
[1760695439783,0.4734,3743.6,3742.4,2.67206535]
[1760695439999,0.0012,3743.7,3743.3,2.67142802]
[1760695440199,0.0012,3743.7,3743.4,2.67135432]
[1760695440403,0.0012,3743.7,3743.3,2.67143015]
[1760695440603,0.0012,3743.7,3742.5,2.43902054]
[1760695440790,0.0012,3743.7,3742.6,0.52110205]
[1760695440986,0.0012,3743.7,3743.2,2.67144334]
[1760695441192,0.4545,3743.6,3743.1,2.67153617]
[1760695441391,0.4545,3743.5,3743.1,2.67153617]
[1760695441599,0.4545,3743.4,3742.6,0.52110205]
[1760695441806,0.41910257,3743.4,3742.7,0.79613549]
[1760695442004,0.41910257,3743.4,3743.1,2.67152904]
[1760695442193,0.04657118,3743.5,3743.1,2.67158199]
[1760695442397,0.04657118,3743.5,3742.8,2.67179651]
[1760695442605,0.04657118,3743.5,3742.6,2.6719272]
[1760695442606,0.2198,3742.9,3742.1,0.1888]
[1760695442812,0.2198,3742.9,3742.5,2.6719608]
[1760695443124,0.41912446,3743.1,3742.2,2.67222489]
[1760695443299,0.41912446,3743.1,3742.3,2.67215348]
[1760695443619,0.0012,3743.7,3743.0,2.67165375]
[1760695443796,0.4557,3743.7,3743.0,2.67165375]
[1760695443996,0.41908613,3743.6,3742.2,0.4329]
[1760695444226,0.41908613,3743.6,3742.3,0.54401594]
[1760695444593,0.4545,3743.5,3742.8,2.67179603]
[1760695444925,0.4545,3743.5,3742.9,2.67170788]
[1760695445303,0.4545,3743.5,3742.3,0.54401594]
[1760695445502,0.4545,3743.4,3742.3,2.67208914]
[1760695445704,0.2198,3742.4,3742.0,2.67231142]
[1760695445926,0.4545,3742.3,3741.8,2.67250936]
[1760695446226,0.63897676,3742.4,3742.0,2.67230417]
[1760695446420,0.63897676,3742.4,3741.2,0.4329]
[1760695446624,0.63897676,3742.4,3741.7,2.67258161]
[1760695446811,0.2198,3742.4,3741.4,1.728]
[1760695447011,0.41920508,3742.2,3741.9,2.67243136]
[1760695447215,0.41920508,3742.2,3741.5,3.15603434]
[1760695447416,0.41920508,3742.2,3741.7,2.67253363]
[1760695447620,0.41920508,3742.2,3741.0,2.67303264]
[1760695447621,0.2198,3741.6,3741.0,2.67303264]
[1760695447825,0.6743,3741.6,3740.1,2.9668]
[1760695448011,0.6743,3741.6,3740.4,0.4329]
[1760695448209,0.41930082,3741.5,3741.0,2.67307721]
[1760695448410,0.41930082,3741.5,3740.4,0.4329]
[1760695448623,0.41930082,3741.5,3740.2,2.02468]
[1760695448624,0.6743,3742.4,3741.5,2.67271443]
[1760695448934,0.2198,3742.4,3740.2,0.29668]
[1760695449101,0.2198,3741.6,3740.1,2.9668]
[1760695449295,0.4545,3741.5,3740.7,2.67329593]
[1760695449499,1.0881,3741.4,3740.1,0.1968]
[1760695449845,0.4545,3741.4,3740.2,0.21292106]
[1760695450022,0.2198,3741.6,3740.2,1.9238]
[1760695450197,0.2198,3741.9,3740.3,2.62075198]
[1760695450402,0.4545,3741.8,3740.3,2.18785198]
[1760695450642,0.4545,3741.7,3740.7,2.67323285]
[1760695450836,0.4545,3741.7,3741.1,2.67294325]
[1760695451133,0.2198,3741.9,3741.1,0.1958]
[1760695451300,0.6743,3741.9,3740.3,0.45985198]
[1760695451628,0.41927465,3741.8,3741.6,0.001]
[1760695451839,0.87377465,3741.8,3741.6,0.001]
[1760695452049,0.4545,3741.7,3741.6,0.001]
[1760695452347,0.4658668,3741.8,3741.6,0.001]
[1760695452847,0.4545,3741.7,3741.6,0.001]
[1760695454211,0.4658668,3741.8,3741.6,0.001]
[1760695454443,0.41927465,3741.8,3741.6,0.001]
[1760695454621,0.4545,3741.7,3741.6,0.001]
[1760695456064,0.41927465,3741.8,3741.6,0.001]
[1760695456220,0.4545,3741.7,3741.6,0.001]
[1760695457158,1.00855882,3741.7,3741.6,0.001]
[1760695457450,2.1825,3741.7,3741.6,0.001]
[1760695458528,1.728,3741.7,3741.6,0.001]
[1760695458848,2.1825,3741.7,3741.6,0.001]
[1760695459051,0.2198,3741.9,3741.6,0.001]
[1760695459733,0.4545,3741.8,3741.6,0.001]
[1760695460137,0.4545,3741.7,3741.6,0.001]
[1760695460654,1e-08,3744.1,3743.6,4.39922555]
[1760695460857,0.04657659,3745.3,3744.4,4.39865484]
[1760695461018,0.1337,3746.1,3744.4,3.6998198]
[1760695461220,0.1337,3746.1,3744.4,3.10355484]
[1760695461422,0.04855673,3745.8,3744.4,3.10355484]
[1760695461836,0.002,3745.8,3744.4,3.73715484]
[1760695462037,0.002,3745.8,3744.4,11.78050916]
[1760695462439,0.002,3745.8,3744.4,14.7030431]
[1760695462739,0.002,3745.8,3744.4,14.56750916]
[1760695462929,0.002,3745.8,3744.4,10.74850916]
[1760695463130,0.002,3745.8,3744.4,13.67750916]
[1760695463733,0.0012,3744.5,3744.4,13.67750916]
[1760695463928,0.0012,3744.5,3744.4,23.57601416]
[1760695464179,0.0012,3744.5,3744.4,10.74850916]
[1760695464342,0.0012,3744.5,3744.4,7.96150916]
[1760695464534,0.0012,3744.5,3744.4,7.32790916]
[1760695464868,0.0012,3744.5,3744.0,0.2288]
[1760695465093,0.0012,3744.5,3743.6,0.2374]
[1760695465243,0.0012,3744.5,3743.2,0.4334]
[1760695465244,0.1001,3744.4,3743.2,0.4334]
[1760695465432,0.0012,3744.5,3743.2,0.4334]
[1760695465636,0.0012,3744.5,3742.9,0.2288]
[1760695465835,0.1001,3744.4,3742.9,2.67169309]
[1760695466140,0.41902547,3744.2,3742.3,1.728]
[1760695466464,0.1001,3744.1,3742.2,0.4334]
[1760695466663,0.7337,3744.0,3742.2,0.4334]
[1760695466863,0.2772,3743.9,3742.0,0.2288]
[1760695467067,0.37790016,3743.8,3742.3,2.67214107]
[1760695467276,0.1009,3743.7,3742.0,0.2288]
[1760695467479,0.4191034,3743.5,3742.5,2.67199902]
[1760695468064,0.46567611,3743.5,3742.5,2.67199902]
[1760695468270,0.46567611,3743.5,3742.0,0.2288]
[1760695468562,0.46567611,3743.5,3742.6,2.67187696]
[1760695468736,0.46567611,3743.5,3742.7,2.67186207]
[1760695468965,0.46567611,3743.5,3742.6,2.6719133]
[1760695469163,0.46567611,3743.5,3742.7,0.00673097]
[1760695469368,0.46567611,3743.5,3742.9,2.67172156]
[1760695469698,0.46567611,3743.5,3742.4,3.10546291]
[1760695469904,0.46567611,3743.5,3742.9,2.67166214]
[1760695470058,0.46567611,3743.5,3742.7,2.6718413]
[1760695470258,0.04657271,3743.5,3742.4,0.36117333]
[1760695470486,0.04657271,3743.5,3742.6,2.67187728]
[1760695470992,0.04657271,3743.5,3742.6,2.67191255]
[1760695471176,0.04657271,3743.5,3742.5,0.001]
[1760695471381,0.04657271,3743.5,3742.9,2.67168291]
[1760695471760,0.04657271,3743.5,3743.2,2.67145601]
[1760695471963,0.04657271,3743.5,3743.3,0.2374]
[1760695472267,0.42025906,3744.5,3743.4,0.00750286]
[1760695472646,0.42025906,3744.5,3743.3,1.04970226]
[1760695472647,0.04656571,3744.0,3743.3,0.2374]
[1760695472780,0.04656571,3744.0,3743.5,2.67129063]
[1760695473097,0.04656571,3744.0,3742.9,0.1328]
[1760695473098,0.1748,3743.9,3743.1,2.67152143]
[1760695473303,0.1748,3743.9,3743.2,0.2374]
[1760695473603,0.04656571,3744.0,3743.4,2.67134971]
[1760695473964,0.04656571,3744.0,3743.7,2.67114257]
[1760695474166,0.04656571,3744.0,3743.8,2.67107397]
[1760695474488,0.04656571,3744.0,3743.4,0.4334]
[1760695474489,0.04656571,3744.0,3743.4,0.5662]
[1760695474685,0.04656571,3744.0,3743.5,2.67123563]
[1760695474902,0.04656571,3744.0,3743.2,3.04171088]
[1760695475201,0.04656571,3744.0,3742.9,0.4334]
[1760695475202,0.1733,3743.9,3742.9,0.4334]
[1760695475385,0.1733,3743.9,3743.1,2.671547]
[1760695475386,0.5923311,3743.9,3743.1,2.671547]
[1760695475718,0.5923311,3743.9,3742.5,0.001]
[1760695475719,0.6336,3743.7,3742.5,0.001]
[1760695475996,3.30477131,3743.7,3742.5,0.001]
[1760695476192,1.728,3743.5,3742.5,0.001]
[1760695476696,0.41911781,3743.3,3742.5,0.001]
[1760695476877,0.6336,3743.2,3742.5,0.001]
[1760695477071,0.738,3743.2,3742.5,0.001]
[1760695477279,1.728,3742.8,3742.5,0.001]
[1760695477480,2.3616,3742.6,3742.5,0.001]
[1760695477707,0.50333251,3742.7,3742.5,0.001]
[1760695478015,0.52363983,3742.6,3742.5,0.001]
[1760695478708,0.57022727,3742.6,3742.5,0.001]
[1760695478868,1.20382727,3742.6,3742.5,0.001]
[1760695479911,0.57022727,3742.6,3742.5,0.001]
[1760695482169,0.46582727,3742.6,3742.5,0.001]
[1760695482974,0.57022727,3742.6,3742.5,0.001]
[1760695483376,0.96282455,3742.6,3742.5,0.001]
[1760695483580,0.46582727,3742.6,3742.5,0.001]
[1760695484304,0.41923983,3742.6,3742.5,0.001]
[1760695486969,0.46582387,3742.6,3742.5,0.001]
[1760695487681,0.46502387,3742.6,3742.5,0.001]
[1760695490007,5.60296316,3742.6,3742.5,0.001]
[1760695490188,3.7585056,3742.6,3742.5,0.001]
[1760695490383,2.93102387,3742.6,3742.5,0.001]
[1760695490571,2.19302387,3742.6,3742.5,0.001]
[1760695490777,2.29742387,3742.6,3742.5,0.001]
[1760695492124,2.19302387,3742.6,3742.5,0.001]
[1760695493006,5.60296316,3742.6,3742.5,0.001]
[1760695493190,6.43043918,3742.6,3742.5,0.001]
[1760695493590,3.02049989,3742.6,3742.5,0.001]
[1760695494012,2.19302387,3742.6,3742.5,0.001]
[1760695494721,2.93102387,3742.6,3742.5,0.001]
[1760695494934,5.60296316,3742.6,3742.5,0.001]
[1760695495493,12.07296316,3742.6,3742.5,0.001]
[1760695495895,12.02637912,3742.6,3742.5,0.001]
[1760695496092,13.49619878,3742.6,3742.5,0.001]
[1760695496532,7.05564389,3742.2,3742.1,0.001]
[1760695496725,26.24488149,3742.2,3742.1,0.001]
[1760695496915,24.24730149,3742.2,3742.1,0.001]
[1760695497091,2.88535672,3742.2,3742.1,0.001]
[1760695497294,3.1986001,3742.2,3742.1,0.001]
[1760695497526,2.5650001,3742.2,3742.1,0.001]
[1760695497739,0.41935672,3742.2,3742.1,0.2188]
[1760695497907,0.41935672,3742.2,3742.1,0.001]
[1760695498303,0.46595286,3742.2,3742.1,0.001]
[1760695499133,0.46595286,3742.2,3742.1,0.2188]
[1760695499317,0.46595286,3742.2,3742.1,0.6534]
[1760695499735,0.46595286,3742.2,3742.1,0.001]
[1760695500161,0.46595286,3742.2,3742.1,0.223]
[1760695500323,0.46595286,3742.2,3742.1,0.6857]
[1760695500524,0.46595286,3742.2,3742.1,0.001]
[1760695500865,0.04659614,3742.2,3742.1,3.3579963]
[1760695501374,0.1044,3743.3,3742.1,0.6857]
[1760695501541,0.04658891,3742.5,3742.1,0.001]
[1760695501743,1.728,3742.9,3742.1,0.223]
[1760695502034,2.81116538,3743.4,3742.1,0.223]
[1760695502035,0.04659036,3742.6,3742.1,0.223]
[1760695502264,0.04659036,3742.6,3742.2,0.4627]
[1760695502445,0.04659036,3742.6,3742.3,0.4627]
[1760695502632,0.04659036,3742.6,3742.1,0.223]
[1760695503223,0.04659036,3742.6,3742.1,0.6857]
[1760695503450,0.04659036,3742.6,3742.1,0.001]
[1760695504153,0.46582717,3742.6,3742.1,0.001]
[1760695504329,0.738,3742.5,3742.1,0.001]
[1760695504532,0.41923681,3742.6,3742.1,0.6857]
[1760695504859,0.41923681,3742.6,3742.2,0.4627]
[1760695505358,0.41923681,3742.6,3742.2,1.728]
[1760695505536,0.41923681,3742.6,3742.3,0.92502709]
[1760695505854,0.42123681,3742.6,3742.1,0.223]
[1760695506569,0.42123681,3742.6,3742.1,0.001]
[1760695506723,0.42123681,3742.6,3742.2,0.4627]
[1760695506919,0.42123681,3742.6,3742.3,0.4627]
[1760695507120,0.42123681,3742.6,3742.4,0.4627]
[1760695507354,0.46782317,3742.6,3742.5,2.67201068]
[1760695507554,0.04858636,3742.6,3742.5,3.71539127]
[1760695507782,0.002,3743.0,3742.9,2.67172513]
[1760695508165,0.002,3743.4,3743.3,2.67143963]
[1760695508525,0.002,3743.4,3743.3,3.13413963]
[1760695510357,0.002,3743.4,3743.3,3.16085402]
[1760695510538,0.002,3743.4,3743.3,3.73958004]
[1760695511234,0.0012,3743.4,3743.3,3.73958004]
[1760695511442,0.0012,3743.4,3743.3,3.76629443]
[1760695512328,0.0012,3743.4,3743.3,3.73958004]
[1760695513328,0.0012,3743.4,3743.3,0.60544041]
[1760695513655,0.0012,3743.4,3742.7,1.728]
[1760695513656,0.0012,3743.4,3742.8,0.222]
[1760695513981,0.099,3743.3,3742.1,0.223]
[1760695514188,0.2422,3743.2,3742.1,0.001]
[1760695514386,0.2422,3743.2,3742.2,0.222]
[1760695514565,0.2422,3743.2,3742.1,0.001]
[1760695514885,4.64176313,3743.2,3742.1,0.001]
[1760695515105,0.41918898,3743.0,3742.1,0.001]
[1760695515388,0.41918898,3743.0,3742.1,0.223]
[1760695515554,0.41918898,3743.0,3742.1,0.001]
[1760695516004,0.733,3742.9,3742.1,0.001]
[1760695516159,0.6336,3742.4,3742.1,0.001]
[1760695516353,0.0994,3742.9,3741.6,0.001]
[1760695516354,25.83817104,3742.2,3741.6,0.001]
[1760695516574,3.30611055,3741.8,3741.6,0.001]
[1760695516788,1.728,3741.8,3741.6,0.001]
[1760695517000,1.827,3741.8,3741.6,0.001]
[1760695517198,1.728,3741.8,3741.6,0.001]
[1760695518503,2.06381446,3741.8,3741.6,0.001]
[1760695519362,1.728,3741.8,3741.6,0.001]
[1760695519559,0.46594457,3742.1,3741.6,0.001]
[1760695519560,0.46594457,3742.1,3742.0,2.67236771]
[1760695519864,0.1366,3743.9,3742.0,0.4627]
[1760695520093,0.04657775,3743.2,3742.5,2.67200976]
[1760695520261,0.04657775,3743.2,3742.1,0.6847]
[1760695520788,0.04657775,3743.2,3742.4,2.67203617]
[1760695520989,0.04657775,3743.2,3742.5,0.53442611]
[1760695521171,0.04657775,3743.2,3741.7,0.001]
[1760695521172,0.6336,3743.1,3741.7,0.001]
[1760695521495,0.1734,3741.8,3741.7,0.001]
[1760695521704,0.1734,3742.2,3741.7,0.001]
[1760695521910,0.1727,3742.7,3741.7,0.4484]
[1760695522073,0.04659264,3742.8,3741.8,0.2223]
[1760695522268,0.04659264,3742.8,3742.2,2.67216013]
[1760695522475,0.04659264,3742.8,3742.3,1.20415278]
[1760695522700,0.04659264,3742.8,3742.3,0.6697]
[1760695522884,0.04659264,3742.8,3742.3,0.2223]
[1760695523097,0.04659264,3742.8,3742.4,0.4474]
[1760695523278,0.0012,3743.4,3742.6,2.67186871]
[1760695523479,0.0012,3743.4,3742.5,0.4474]
[1760695523720,0.0012,3743.4,3742.9,2.67171209]
[1760695524008,0.0012,3743.4,3742.5,3.25297676]
[1760695524209,0.1458,3743.3,3742.3,0.2223]
[1760695524786,0.04658128,3743.2,3742.3,0.2223]
[1760695524987,0.41916344,3743.1,3742.3,0.2223]
[1760695525316,0.002,3742.5,3742.4,0.4474]
[1760695526109,0.002,3742.5,3742.4,3.11948208]
[1760695526274,0.002,3742.5,3742.4,3.72088161]
[1760695527704,0.2722,3742.5,3741.7,0.001]
[1760695527872,0.1744,3741.8,3741.7,0.001]
[1760695528282,0.4436,3741.8,3741.7,0.001]
[1760695528687,0.1744,3741.8,3741.7,0.001]
[1760695528905,3.13983961,3742.5,3741.7,0.001]
[1760695529111,0.002,3742.5,3741.7,0.4484]
[1760695529314,0.1017,3742.5,3741.7,0.001]
[1760695529494,0.14829367,3742.5,3741.7,0.001]
[1760695529702,0.1724,3741.8,3741.7,0.001]
[1760695530714,0.04659755,3741.8,3741.7,0.001]
[1760695531993,0.04659755,3741.8,3741.7,0.4484]
[1760695532785,0.41924914,3742.2,3741.7,3.72718637]
[1760695533018,0.41924914,3742.2,3742.1,0.2223]